fUSD/lending_fUSD_20240414
["ID","MTS","AMOUNT","RATE_DAILY","PERIOD"]
[322584173,1713084662119,-1875.19,0.00049589,120]
[322584174,1713084662128,-1026.67,0.00049589,120]
[322584175,1713084662137,-2960.52,0.00049589,120]
[322584176,1713084662147,-560.78,0.00049589,120]
[322584177,1713084662157,-500.0,0.00049589,120]
[322584178,1713084662166,-966.18,0.00049589,120]
[322584179,1713084662176,-11988.42,0.00049589,120]
[322584180,1713084662185,-6432.44,0.00049589,120]
[322584181,1713084662194,-2013.99,0.00049589,120]
[322584182,1713084662203,-509.71481383,0.00049589,120]
[322584183,1713084662212,-500.0,0.00049589,120]
[322584184,1713084662221,-3561.67,0.00049589,120]
[322584185,1713084662230,-500.0,0.00049589,120]
[322584186,1713084662239,-500.0,0.00049589,120]
[322584187,1713084662250,-500.0,0.00049589,120]
[322584188,1713084662260,-1785.2,0.00049589,120]
[322584189,1713084662269,-589.25395172,0.00049589,120]
[322584190,1713084662278,-557.78,0.00049589,120]
[322584191,1713084662288,-6228.1,0.00049589,120]
[322584192,1713084662298,-500.0,0.00049589,120]
[322584193,1713084662307,-7986.0,0.00049589,120]
[322584194,1713084662317,-710.89,0.00049589,120]
[322584195,1713084662326,-1120.87,0.00049589,120]
[322584196,1713084662335,-500.0,0.00049589,120]
[322584197,1713084662345,-500.0,0.00049589,120]
[322584198,1713084662355,-500.0,0.00049589,120]
[322584199,1713084662364,-2275.83,0.00049589,120]
[322584200,1713084662374,-500.0,0.00049589,120]
[322584201,1713084662383,-4308.87,0.00049589,120]
[322584202,1713084662393,-9654.22,0.00049589,120]
[322584203,1713084662402,-500.0,0.00049589,120]
[322584204,1713084662412,-2866.2,0.00049589,120]
[322584205,1713084662422,-3710.71,0.00049589,120]
[322584206,1713084662431,-500.0,0.00049589,120]
[322584207,1713084662440,-1317.29,0.00049589,120]
[322584208,1713084662450,-993.94,0.00049589,120]
[322584209,1713084662459,-500.0,0.00049589,120]
[322584210,1713084662469,-502.14165572,0.00049589,120]
[322584211,1713084662477,-500.0,0.00049589,120]
[322584212,1713084662487,-506.97985704,0.00049589,120]
[322584213,1713084662498,-500.0,0.00049589,120]
[322584214,1713084662507,-555.92904296,0.00049589,120]
[322584215,1713084662517,-4594.71,0.00049589,120]
[322584216,1713084662526,-4973.27,0.00049589,120]
[322584217,1713084662535,-1623.72,0.00049589,120]
[322584218,1713084662544,-3367.76,0.00049589,120]
[322584219,1713084662553,-500.0,0.00049589,120]
[322584220,1713084662562,-500.0,0.00049589,120]
[322584221,1713084662571,-500.0,0.00049589,120]
[322584222,1713084662580,-500.0,0.00049589,120]
[322584223,1713084662589,-500.0,0.00049589,120]
[322584224,1713084662598,-782.9,0.00049589,120]
[322584225,1713084662608,-2740.64,0.00049589,120]
[322584226,1713084662616,-500.0,0.00049589,120]
[322584227,1713084662626,-4425.18,0.00049589,120]
[322584228,1713084662635,-500.0,0.00049589,120]
[322584229,1713084662644,-500.0,0.00049589,120]
[322584230,1713084662653,-1960.77,0.00049589,120]
[322584231,1713084662663,-500.0,0.00049589,120]
[322584232,1713084662672,-5397.41,0.00049589,120]
[322584233,1713084662681,-9359.29,0.00049589,120]
[322584234,1713084662691,-500.0,0.00049589,120]
[322584235,1713084662701,-4035.76,0.00049589,120]
[322584236,1713084662710,-501.64882246,0.00049589,120]
[322584237,1713084662720,-2120.75,0.00049589,120]
[322584238,1713084662730,-505.07850456,0.00049589,120]
[322584239,1713084662740,-7244.62,0.00049589,120]
[322584240,1713084662754,-500.0,0.00049589,120]
[322584241,1713084662764,-368.50894091,0.00049589,120]
[322584242,1713084662774,-1270.46,0.00049589,120]
[322584243,1713084662784,-500.0,0.00049589,120]
[322584244,1713084662794,-500.0,0.00049589,120]
[322584245,1713084662804,-503.84693035,0.00049589,120]
[322584246,1713084662814,-500.0,0.00049589,120]
[322584247,1713084663011,-2205.58,0.00049589,120]
[322584248,1713084663025,-7111.23,0.00049589,120]
[322584249,1713084663034,-11212.87,0.00049589,120]
[322584250,1713084663044,-501.46719468,0.00049589,120]
[322584251,1713084663054,-1786.11,0.00049589,120]
[322584252,1713084663064,-535.85093802,0.00049589,120]
[322584253,1713084663074,-500.0,0.00049589,120]
[322584254,1713084663083,-489.13397351,0.00049589,120]
[322584255,1713084663093,-500.0,0.00049589,120]
[322584256,1713084663103,-500.0,0.00049589,120]
[322584257,1713084663112,-1031.48,0.00049589,120]
[322584258,1713084663122,-3933.71,0.00049589,120]
[322584259,1713084663132,-10730.03,0.00049589,21]
[322584260,1713084663143,-1202.71,0.00049589,120]
[322584261,1713084663152,-500.0,0.00049589,120]
[322584262,1713084663163,-2216.86,0.00049589,120]
[322584263,1713084663172,-500.0,0.00049589,120]
[322584264,1713084663182,-500.0,0.00049589,120]
[322584265,1713084663191,-4660.32,0.00049589,120]
[322584266,1713084663201,-884.01,0.00049589,120]
[322584267,1713084663210,-2353.54,0.00049589,120]
[322584268,1713084663220,-500.0,0.00049589,120]
[322584269,1713084663230,-8661.67,0.00049589,120]
[322584270,1713084663240,-1104.92,0.00049589,120]
[322584271,1713084663250,-500.0,0.00049589,120]
[322584272,1713084663260,-500.0,0.00049589,120]
[322584273,1713084663269,-500.0,0.00049589,120]
[322584274,1713084663279,-2726.97,0.00049589,120]
[322584275,1713084663289,-776.98,0.00049589,120]
[322584276,1713084663298,-500.0,0.00049589,120]
[322584277,1713084663308,-500.0,0.00049589,120]
[322584278,1713084663317,-2121.1,0.00049589,7]
[322584279,1713084663326,-5599.04,0.00049589,120]
[322584280,1713084663336,-553.64,0.00049589,120]
[322584281,1713084663345,-500.0,0.00049589,120]
[322584282,1713084663355,-500.0,0.00049589,120]
[322584283,1713084663364,-500.0,0.00049589,120]
[322584284,1713084663374,-31544.12,0.00049589,120]
[322584285,1713084663383,-1070.71,0.00049589,120]
[322584286,1713084663393,-500.0,0.00049589,120]
[322584287,1713084663402,-6398.48,0.00049589,120]
[322584288,1713084663412,-1829.25,0.00049589,120]
[322584289,1713084663421,-812.49,0.00049589,120]
[322584290,1713084663431,-500.0,0.00049589,120]
[322584291,1713084663440,-500.0,0.00049589,120]
[322584292,1713084663450,-2965.08,0.00049589,120]
[322584293,1713084663459,-3835.72,0.00049589,120]
[322584294,1713084663469,-500.0,0.00049589,120]
[322584295,1713084663480,-500.0,0.00049589,120]
[322584296,1713084663489,-2246.5,0.00049589,120]
[322584297,1713084663504,-7067.01,0.00049589,120]
[322584298,1713084663513,-500.0,0.00049589,120]
[322584299,1713084663522,-500.0,0.00049589,120]
[322584300,1713084663532,-500.0,0.00049589,120]
[322584301,1713084663541,-16596.35,0.00049589,120]
[322584302,1713084663551,-7738.44,0.00049589,120]
[322584303,1713084663561,-5068.63,0.00049589,120]
[322584304,1713084663571,-500.0,0.00049589,120]
[322584305,1713084663582,-7073.04,0.00049589,120]
[322584306,1713084663593,-1932.9,0.00049589,120]
[322584307,1713084663603,-500.0,0.00049589,120]
[322584308,1713084663614,-1655.78,0.00049589,120]
[322584309,1713084663624,-500.0,0.00049589,120]
[322584310,1713084663635,-500.0,0.00049589,120]
[322584311,1713084663646,-581.98,0.00049589,120]
[322584312,1713084663657,-986.69,0.00049589,120]
[322584313,1713084663667,-551.52,0.00049589,120]
[322584314,1713084663678,-500.0,0.00049589,120]
[322584315,1713084663688,-1144.68,0.00049589,120]
[322584316,1713084663697,-500.0,0.00049589,120]
[322584317,1713084663707,-500.0,0.00049589,120]
[322584318,1713084663716,-1568.55,0.00049589,120]
[322584319,1713084663726,-989.13,0.00049589,120]
[322584320,1713084663735,-500.0,0.00049589,120]
[322584321,1713084663749,-168.89506597,0.00049589,120]
[322584322,1713084663758,-4795.13,0.00049589,120]
[322584323,1713084663767,-500.0,0.00049589,120]
[322584324,1713084663777,-6690.0,0.00049589,120]
[322584325,1713084663786,-500.0,0.00049589,120]
[322584326,1713084663795,-500.0,0.00049589,120]
[322584327,1713084663804,-4463.09,0.00049589,120]
[322584328,1713084663813,-11483.63,0.00049589,120]
[322584329,1713084663823,-500.0,0.00049589,120]
[322584330,1713084663833,-500.0,0.00049589,120]
[322584331,1713084663842,-500.0,0.00049589,120]
[322584332,1713084663852,-10841.85,0.00049589,120]
[322584333,1713084663862,-13895.98,0.00049589,120]
[322584334,1713084663872,-500.0,0.00049589,120]
[322584335,1713084663881,-4469.11,0.00049589,120]
[322584336,1713084663891,-920.23,0.00049589,120]
[322584337,1713084663901,-3018.33,0.00049589,120]
[322584338,1713084663910,-6101.29,0.00049589,120]
[322584339,1713084663920,-500.0,0.00049589,120]
[322584340,1713084663929,-500.0,0.00049589,120]
[322584341,1713084663939,-700.26,0.00049589,120]
[322584342,1713084663948,-500.0,0.00049589,120]
[322584343,1713084663958,-500.0,0.00049589,120]
[322584344,1713084663969,-2072.19,0.00049589,120]
[322584345,1713084663980,-628.46,0.00049589,120]
[322584346,1713084663990,-633.56,0.00049589,120]
[322584347,1713084664001,-500.0,0.00049589,120]
[322584348,1713084664011,-4951.11,0.00049589,120]
[322584349,1713084664021,-681.17,0.00049589,120]
[322584350,1713084664030,-500.0,0.00049589,120]
[322584351,1713084664040,-500.0,0.00049589,120]
[322584352,1713084664050,-500.0,0.00049589,120]
[322584353,1713084664059,-1984.89,0.00049589,120]
[322584354,1713084664069,-3294.48,0.00049589,120]
[322584355,1713084664078,-500.0,0.00049589,120]
[322584356,1713084664087,-4080.24,0.00049589,120]
[322584357,1713084664097,-2283.43,0.00049589,120]
[322584358,1713084664106,-5779.99,0.00049589,120]
[322584359,1713084664115,-5864.74,0.00049589,120]
[322584360,1713084664125,-500.0,0.00049589,120]
[322584361,1713084664134,-5045.71,0.00049589,120]
[322584362,1713084664144,-286.26406669,0.00049589,120]
[322584363,1713084664153,-677.48,0.00049589,120]
[322584364,1713084664162,-500.0,0.00049589,120]
[322584365,1713084664171,-500.0,0.00049589,120]
[322584366,1713084664181,-500.0,0.00049589,120]
[322584367,1713084664190,-500.0,0.00049589,120]
[322584368,1713084664200,-500.0,0.00049589,120]
[322584369,1713084664209,-967.33,0.00049589,120]
[322584370,1713084664218,-500.0,0.00049589,120]
[322584371,1713084664230,-667.4,0.00049589,120]
[322584372,1713084664241,-608.29,0.00049589,120]
[322584373,1713084664254,-500.0,0.00049589,120]
[322584374,1713084664263,-15629.74,0.00049589,120]
[322584375,1713084664272,-468.66469095,0.00049589,120]
[322584376,1713084664282,-703.2,0.00049589,120]
[322584377,1713084664291,-3122.17,0.00049589,120]
[322584378,1713084664300,-5584.31,0.00049589,120]
[322584379,1713084664309,-500.0,0.00049589,120]
[322584380,1713084664319,-500.0,0.00049589,120]
[322584381,1713084664329,-2041.27,0.00049589,120]
[322584382,1713084664338,-500.0,0.00049589,120]
[322584383,1713084664348,-1088.43,0.00049589,120]
[322584384,1713084664358,-500.0,0.00049589,120]
[322584385,1713084664368,-500.0,0.00049589,120]
[322584386,1713084664377,-548.19,0.00049589,120]
[322584387,1713084664386,-36259.52,0.00049589,120]
[322584388,1713084664396,-500.0,0.00049589,120]
[322584389,1713084664405,-5147.89,0.00049589,120]
[322584390,1713084664414,-500.0,0.00049589,120]
[322584391,1713084664424,-500.0,0.00049589,120]
[322584392,1713084664433,-500.0,0.00049589,120]
[322584393,1713084664443,-1115.66,0.00049589,120]
[322584394,1713084664452,-9066.77,0.00049589,120]
[322584395,1713084664462,-4476.0,0.00049589,120]
[322584396,1713084664472,-1295.73,0.00049589,120]
[322584397,1713084664482,-2344.48,0.00049589,120]
[322584398,1713084664491,-808.51,0.00049589,120]
[322584399,1713084664502,-2551.38,0.00049589,120]
[322584400,1713084664512,-1319.16,0.00049589,120]
[322584401,1713084664522,-500.0,0.00049589,120]
[322584402,1713084664532,-610.26,0.00049589,120]
[322584403,1713084664541,-3175.04,0.00049589,120]
[322584404,1713084664551,-500.0,0.00049589,120]
[322584405,1713084664560,-500.0,0.00049589,120]
[322584406,1713084664570,-3990.17,0.00049589,120]
[322584407,1713084664580,-1533.11,0.00049589,120]
[322584408,1713084664589,-500.0,0.00049589,120]
[322584409,1713084664598,-5503.02,0.00049589,120]
[322584410,1713084664608,-500.0,0.00049589,120]
[322584411,1713084664618,-2698.94,0.00049589,120]
[322584412,1713084664628,-1458.23,0.00049589,120]
[322584413,1713084664637,-500.0,0.00049589,120]
[322584414,1713084664647,-31236.42,0.00049589,120]
[322584415,1713084664657,-693.7,0.00049589,120]
[322584416,1713084664668,-1965.13,0.00049589,120]
[322584417,1713084664677,-500.0,0.00049589,120]
[322584418,1713084664687,-3327.19,0.00049589,120]
[322584419,1713084664696,-5207.03,0.00049589,120]
[322584420,1713084664706,-500.0,0.00049589,120]
[322584421,1713084664717,-500.0,0.00049589,120]
[322584422,1713084664727,-5705.48,0.00049589,120]
[322584423,1713084664736,-500.0,0.00049589,120]
[322584424,1713084664749,-5705.12,0.00049589,120]
[322584425,1713084664759,-1080.77,0.00049589,120]
[322584426,1713084664769,-500.0,0.00049589,120]
[322584427,1713084664779,-500.0,0.00049589,120]
[322584428,1713084664789,-3263.65,0.00049589,120]
[322584429,1713084664799,-783.24,0.00049589,120]
[322584430,1713084664809,-663.48,0.00049589,120]
[322584431,1713084664820,-500.0,0.00049589,120]
[322584432,1713084664830,-500.0,0.00049589,120]
[322584433,1713084664840,-9934.25,0.00049589,120]
[322584434,1713084664850,-1122.72,0.00049589,120]
[322584435,1713084664860,-500.0,0.00049589,120]
[322584436,1713084664870,-500.0,0.00049589,120]
[322584437,1713084664880,-500.0,0.00049589,120]
[322584438,1713084664890,-500.0,0.00049589,120]
[322584439,1713084664900,-500.0,0.00049589,120]
[322584440,1713084664910,-5084.6,0.00049589,120]
[322584441,1713084664919,-500.0,0.00049589,120]
[322584442,1713084664929,-500.0,0.00049589,120]
[322584443,1713084664939,-500.0,0.00049589,120]
[322584444,1713084664948,-7675.11,0.00049589,120]
[322584445,1713084664958,-4269.37,0.00049589,120]
[322584446,1713084664968,-5932.43,0.00049589,120]
[322584447,1713084664980,-2389.25,0.00049589,120]
[322584448,1713084664990,-500.0,0.00049589,120]
[322584449,1713084665002,-500.0,0.00049589,120]
[322584450,1713084665013,-1468.58,0.00049589,120]
[322584451,1713084665023,-500.0,0.00049589,120]
[322584452,1713084665034,-239.64,0.00049589,120]
[322584453,1713084665044,-548.93006641,0.00049589,120]
[322584454,1713084665058,-940.86,0.00049589,120]
[322584455,1713084665069,-16551.18,0.00049589,120]
[322584456,1713084665079,-1528.96,0.00049589,7]
[322584457,1713084665089,-500.0,0.00049589,120]
[322584458,1713084665100,-500.0,0.00049589,120]
[322584459,1713084665110,-500.0,0.00049589,120]
[322584460,1713084665120,-500.0,0.00049589,120]
[322584461,1713084665131,-783.72,0.00049589,120]
[322584462,1713084665141,-500.0,0.00049589,120]
[322584463,1713084665151,-1583.49,0.00049589,120]
[322584464,1713084665161,-500.0,0.00049589,120]
[322584465,1713084665171,-2026.77,0.00049589,120]
[322584466,1713084665267,-500.0,0.00049589,120]
[322584467,1713084665277,-3010.35,0.00049589,120]
[322584468,1713084665287,-1409.2,0.00049589,120]
[322584469,1713084665297,-7390.59,0.00049589,120]
[322584470,1713084665307,-500.0,0.00049589,120]
[322584471,1713084665317,-871.67,0.00049589,120]
[322584472,1713084665326,-500.0,0.00049589,120]
[322584473,1713084665336,-3754.03,0.00049589,120]
[322584474,1713084665346,-500.0,0.00049589,120]
[322584475,1713084665357,-12211.47,0.00049589,120]
[322584476,1713084665367,-500.0,0.00049589,120]
[322584477,1713084665377,-889.52,0.00049589,120]
[322584478,1713084665386,-500.0,0.00049589,120]
[322584479,1713084665396,-2000.0,0.00049589,30]
[322584480,1713084665405,-500.0,0.00049589,120]
[322584481,1713084665415,-1895.54,0.00049589,120]
[322584482,1713084665424,-500.0,0.00049589,120]
[322584483,1713084665433,-577.55,0.00049589,120]
[322584484,1713084665443,-500.0,0.00049589,120]
[322584485,1713084665453,-1305.12,0.00049589,120]
[322584486,1713084665462,-500.0,0.00049589,120]
[322584487,1713084665472,-5000.0,0.00049589,120]
[322584488,1713084665483,-518.39777942,0.00049589,120]
[322584489,1713084665493,-500.0,0.00049589,120]
[322584490,1713084665504,-617.5,0.00049589,120]
[322584491,1713084665514,-500.0,0.00049589,120]
[322584492,1713084665524,-13036.63,0.00049589,120]
[322584493,1713084665534,-533.14,0.00049589,120]
[322584494,1713084665544,-7199.38,0.00049589,120]
[322584495,1713084665556,-2470.7,0.00049589,120]
[322584496,1713084665566,-500.0,0.00049589,120]
[322584497,1713084665577,-500.0,0.00049589,120]
[322584498,1713084665587,-781.39,0.00049589,120]
[322584499,1713084665599,-25912.31,0.00049589,120]
[322584500,1713084665609,-500.0,0.00049589,120]
[322584501,1713084665619,-1688.5,0.00049589,120]
[322584502,1713084665630,-500.0,0.00049589,120]
[322584503,1713084665640,-599.64002039,0.00049589,120]
[322584504,1713084665650,-3392.24,0.00049589,120]
[322584505,1713084665660,-567.66,0.00049589,2]
[322584506,1713084665670,-3147.97,0.00049589,120]
[322584507,1713084665681,-500.0,0.00049589,120]
[322584508,1713084665693,-2233.67,0.00049589,120]
[322584509,1713084665704,-500.0,0.00049589,120]
[322584510,1713084665715,-500.0,0.00049589,120]
[322584511,1713084665726,-500.0,0.00049589,120]
[322584512,1713084665736,-500.0,0.00049589,120]
[322584513,1713084665747,-6398.5,0.00049589,120]
[322584514,1713084665758,-500.0,0.00049589,120]
[322584515,1713084665768,-500.0,0.00049589,120]
[322584516,1713084665779,-500.0,0.00049589,120]
[322584517,1713084665789,-500.0,0.00049589,120]
[322584518,1713084665800,-500.0,0.00049589,120]
[322584519,1713084665810,-491.54009516,0.00049589,120]
[322584520,1713084665821,-6602.79,0.00049589,120]
[322584521,1713084665832,-500.0,0.00049589,120]
[322584522,1713084665842,-2745.69,0.00049589,120]
[322584523,1713084665853,-500.0,0.00049589,120]
[322584524,1713084665863,-506.27026762,0.00049589,120]
[322584525,1713084665874,-926.51,0.00049589,120]
[322584526,1713084665885,-9721.5,0.00049589,120]
[322584527,1713084665896,-4433.61,0.00049589,120]
[322584528,1713084665906,-500.0,0.00049589,120]
[322584529,1713084665916,-530.22084876,0.00049589,120]
[322584530,1713084665927,-10667.4,0.00049589,120]
[322584531,1713084665936,-500.0,0.00049589,120]
[322584532,1713084665946,-14925.53,0.00049589,120]
[322584533,1713084665957,-1015.04,0.00049589,120]
[322584534,1713084665966,-500.0,0.00049589,120]
[322584535,1713084665978,-300.0,0.00049589,7]
[322584536,1713084665989,-500.0,0.00049589,120]
[322584537,1713084666001,-731.74,0.00049589,120]
[322584538,1713084666012,-500.0,0.00049589,120]
[322584539,1713084666022,-504.3648475,0.00049589,120]
[322584540,1713084666031,-940.73,0.00049589,120]
[322584541,1713084666041,-852.0,0.00049589,60]
[322584542,1713084666051,-1381.7,0.00049589,120]
[322584543,1713084666062,-500.0,0.00049589,120]
[322584544,1713084666073,-500.0,0.00049589,120]
[322584545,1713084666083,-5052.74,0.00049589,120]
[322584546,1713084666093,-1117.53,0.00049589,120]
[322584547,1713084666104,-500.0,0.00049589,2]
[322584548,1713084666113,-7680.33,0.00049589,120]
[322584549,1713084666123,-500.0,0.00049589,120]
[322584550,1713084666134,-743.01,0.00049589,120]
[322584551,1713084666144,-1095.34,0.00049589,120]
[322584552,1713084666155,-500.0,0.00049589,120]
[322584553,1713084666165,-1919.91,0.00049589,120]
[322584554,1713084666176,-728.67,0.00049589,120]
[322584555,1713084666187,-1780.59,0.00049589,120]
[322584556,1713084666198,-3438.15,0.00049589,120]
[322584557,1713084666209,-500.0,0.00049589,120]
[322584558,1713084666219,-8529.94,0.00049589,120]
[322584559,1713084666230,-500.0,0.00049589,120]
[322584560,1713084666241,-619.77,0.00049589,120]
[322584561,1713084666252,-500.0,0.00049589,120]
[322584562,1713084666263,-7327.03,0.00049589,120]
[322584563,1713084666273,-500.0,0.00049589,120]
[322584564,1713084666283,-1004.67,0.00049589,120]
[322584565,1713084666294,-500.0,0.00049589,120]
[322584566,1713084666304,-500.0,0.00049589,120]
[322584567,1713084666315,-1279.38,0.00049589,120]
[322584568,1713084666325,-500.0,0.00049589,120]
[322584569,1713084666335,-500.0,0.00049589,120]
[322584570,1713084666346,-1215.54,0.00049589,120]
[322584571,1713084666356,-829.96,0.00049589,120]
[322584572,1713084666366,-500.0,0.00049589,120]
[322584573,1713084666377,-1964.88,0.00049589,120]
[322584574,1713084666387,-500.0,0.00049589,120]
[322584575,1713084666398,-1939.27,0.00049589,120]
[322584576,1713084666408,-1610.32,0.00049589,120]
[322584577,1713084666418,-500.0,0.00049589,2]
[322584578,1713084666428,-500.0,0.00049589,120]
[322584579,1713084666438,-600.0,0.00049589,120]
[322584580,1713084666448,-500.0,0.00049589,120]
[322584581,1713084666458,-7456.14,0.00049589,120]
[322584582,1713084666468,-500.0,0.00049589,120]
[322584583,1713084666478,-600.0,0.0004966,90]
[322584584,1713084666488,-155.72346715,0.00049694,30]
[322584585,1713084666501,-300.0,0.000497,2]
[322584586,1713084666511,-185.0180381,0.00049705,30]
[322584587,1713084666521,-3000.0,0.00049726,120]
[322584588,1713084666531,-152.45161625,0.00049744,30]
[322584589,1713084666541,-157.041416,0.00049798,88]
[322584590,1713084666552,-253.15555556,0.00049808,120]
[322584591,1713084666562,-539.0,0.0004982,30]
[322584592,1713084666572,-461.04240163,0.0004982,30]
[322584593,1713084666583,-608.7766053,0.0004982,30]
[322584594,1713084666594,-591.0,0.0004982,30]
[322584595,1713084666605,-1183.38410859,0.0004982,30]
[322584596,1713084666615,-4626.6,0.00049829,117]
[322584597,1713084666626,-2832.51535438,0.00049862,120]
[322584598,1713084666637,-500.0,0.00049863,120]
[322584599,1713084666649,-500.0,0.00049863,120]
[322584600,1713084666660,-1088.08,0.00049863,120]
[322584601,1713084666671,-500.0,0.00049863,120]
[322584602,1713084666682,-948.94,0.00049863,120]
[322584603,1713084666694,-503.9854569,0.00049863,120]
[322584604,1713084666705,-500.0,0.00049863,120]
[322584605,1713084666716,-500.0,0.00049863,120]
[322584606,1713084666728,-500.0,0.00049863,120]
[322584607,1713084666739,-879.42,0.00049863,120]
[322584608,1713084666751,-1258.96,0.00049863,120]
[322584609,1713084666763,-1106.16,0.00049863,120]
[322584610,1713084666774,-500.0,0.00049863,120]
[322584611,1713084666785,-1394.53,0.00049863,120]
[322584612,1713084666797,-500.0,0.00049863,120]
[322584613,1713084666808,-1544.92,0.00049863,120]
[322584614,1713084666820,-500.0,0.00049863,120]
[322584615,1713084666832,-1021.94,0.00049863,120]
[322584616,1713084666846,-500.0,0.00049863,120]
[322584617,1713084666857,-1134.71,0.00049863,120]
[322584618,1713084666873,-500.0,0.00049863,120]
[322584619,1713084666885,-500.0,0.00049863,120]
[322584620,1713084666905,-1132.74,0.00049863,120]
[322584621,1713084666930,-500.0,0.00049863,120]
[322584622,1713084666949,-500.0,0.00049863,120]
[322584623,1713084666974,-1404.24,0.00049863,120]
[322584624,1713084666988,-728.9,0.00049863,120]
[322584625,1713084667006,-1091.06,0.00049863,120]
[322584626,1713084667018,-502.74,0.00049863,120]
[322584627,1713084667043,-500.0,0.00049863,120]
[322584628,1713084667055,-500.0,0.00049863,120]
[322584629,1713084667067,-500.0,0.00049863,120]
[322584630,1713084667079,-500.0,0.00049863,120]
[322584631,1713084667093,-701.88,0.00049863,120]
[322584632,1713084667105,-500.0,0.00049863,120]
[322584633,1713084667117,-510.48838986,0.00049863,120]
[322584634,1713084667129,-1260.05,0.00049863,120]
[322584635,1713084667140,-1415.01,0.00049863,120]
[322584636,1713084667151,-500.0,0.00049863,120]
[322584637,1713084667162,-500.0,0.00049863,120]
[322584638,1713084667172,-500.0,0.00049863,120]
[322584639,1713084667183,-577.47,0.00049863,120]
[322584640,1713084667195,-519.71,0.00049863,120]
[322584641,1713084667205,-500.0,0.00049863,120]
[322584642,1713084667216,-500.0,0.00049863,120]
[322584643,1713084667227,-939.0,0.00049863,120]
[322584644,1713084667238,-514.41569773,0.00049863,120]
[322584645,1713084667252,-500.0,0.00049863,120]
[322584646,1713084667263,-2429.88,0.00049863,120]
[322584647,1713084667275,-500.0,0.00049863,120]
[322584648,1713084667285,-500.0,0.00049863,120]
[322584649,1713084667297,-945.0,0.00049863,120]
[322584650,1713084667310,-1122.64,0.00049863,120]
[322584651,1713084667322,-501.97973006,0.00049863,2]
[322584652,1713084667334,-569.33,0.00049863,120]
[322584653,1713084667346,-500.0,0.00049863,120]
[322584654,1713084667358,-500.0,0.00049863,120]
[322584655,1713084667369,-500.0,0.00049863,120]
[322584656,1713084667380,-514.56,0.00049863,120]
[322584657,1713084667391,-500.0,0.00049863,120]
[322584658,1713084667402,-500.0,0.00049863,120]
[322584659,1713084667425,-854.75,0.00049863,120]
[322584660,1713084667455,-762.26,0.00049863,120]
[322584661,1713084667474,-506.54120753,0.00049863,120]
[322584662,1713084667512,-2224.23,0.00049863,120]
[322584663,1713084667527,-547.47,0.00049863,120]
[322584664,1713084667545,-500.0,0.00049863,120]
[322584665,1713084667556,-946.09,0.00049863,120]
[322584666,1713084667582,-500.0,0.00049863,120]
[322584667,1713084667610,-1476.74,0.00049863,120]
[322584668,1713084667630,-505.23835913,0.00049863,120]
[322584669,1713084667641,-500.0,0.00049863,120]
[322584670,1713084667652,-479.78517669,0.00049863,120]
[322584671,1713084667673,-529.73,0.00049863,120]
[322584672,1713084667685,-502.07717794,0.00049863,2]